Cogmind - Beta 11 X4 @@@ ROGUE MODE // 2021.05.25 @ 20:04:10 Player: Stryker Result: Self-destructed Performance ------------- Evolutions (9) 4500 Regions Visited (18) 3600 Robots Destroyed (246) 1230 Value Destroyed (11042) 11042 Prototype IDs (65) 1300 Alien Tech Used (0) 0 Bonus (1663) 1663 TOTAL SCORE: 23335 Bonus ------- High Alert Combat Kills 297 Follower Combat Kills 1211 Network Hubs Disabled 200 Aligned with FarCom 300 Friendly Fire -345 Cogmind --------- Core Integrity 1466/1600 Matter 65/300 Energy 966/1840 System Corruption 18% Temperature Cool (97) Movement Walking (116) Location -1/Command Parts ------- > --- POWER (2) -------- Particle Reactor > --- PROPULSION (6) --- Biometal Leg Biometal Leg Centrium Leg Centrium Leg Centrium Leg > --- UTILITY (13) ----- Advanced Coolant Injector High-capacity Storage Unit Superbattery Advanced Target Analyzer Centrium Medium Armor Plating Improved Hacking Suite Improved Hacking Suite > --- WEAPON (4) ------- Improved KE Penetrator Improved KE Penetrator Improved KE Penetrator Hypervelocity Railgun > --- INVENTORY (20) --- Centrium Leg Centrium Leg Centrium Leg Matter Compressor (250) Weapon Shielding Improved Focal Shield Advanced Thermal Shield Improved Force Field System Backup Module Heavy Phase Cannon Improved KE Penetrator Improved KE Penetrator Hypervelocity Railgun Neutron Missile Launcher Lance Peak State ------------ > --- POWER ------------ Particle Reactor Quantum Reactor > --- PROPULSION ------- Biometal Leg Biometal Leg Biometal Leg Biometal Leg Centrium Leg Centrium Leg > --- UTILITY ---------- Advanced Coolant Injector High-capacity Storage Unit Superbattery Advanced Target Analyzer Layered Heavy Armor Plating Centrium Medium Armor Plating Improved Shock Absorption System EM Dispersion Field Advanced Force Field Antimissile System Improved Hacking Suite Improved Hacking Suite > --- WEAPON ----------- Railgun Improved KE Penetrator Improved KE Penetrator Hypervelocity Railgun > --- INVENTORY -------- Particle Reactor Centrium Leg Centrium Leg Centrium Leg Centrium Leg Matter Compressor Weapon Shielding Improved Focal Shield Advanced Thermal Shield Improved Force Field System Backup Module Heavy Phase Cannon Improved KE Penetrator Improved KE Penetrator Improved KE Penetrator Hypervelocity Railgun Neutron Missile Launcher Lance [Rating: 197] Favorites ----------- Power F-cell Engine Engine F-cell Engine Power Core Light Nuclear Core Reactor Particle Reactor Propulsion Myomer Leg Treads Armored Medium Treads Leg Myomer Leg Wheel Wheel Utility Improved Hacking Suite Device Structural Scanner Storage High-capacity Storage Unit Processor Machine Analyzer Hackware Improved Hacking Suite Protection Centrium Medium Armor Plating Weapon Improved KE Penetrator Energy Gun Advanced Variable Charge Gun Energy Cannon Heavy Phase Cannon Ballistic Gun Improved KE Penetrator Ballistic Cannon Antimatter Cannon Launcher Neutron Missile Launcher Slashing Weapon Great Axe Piercing Weapon Lance Build | -11 -10 -10 -10 -9 -8 -7 -6 -6 -6 -6 -6 -5 -4 -4 -3 -2 -1 -1 ------- Run | Scr Mat Min Exi Min Mat Fac Fac Ext Cet Arc Hub Fac Fac Arm Res Res Acc Com Slots Evolved 18 | . . . . . 4 2 2 . . . . 2 2 . 2 2 2 . Power 1 | . . . . . . . . . . . . . . . . 1 . . Propulsion 4 | . . . . . 2 1 . . . . . . . . . 1 . . Utility 11 | . . . . . 2 1 1 . . . . 2 2 . 1 . 2 . Weapon 2 | . . . . . . . 1 . . . . . . . 1 . . . Parts Attached 347 | 2 9 17 . 1 38 10 33 13 7 5 15 17 24 61 9 43 24 19 Power 17 | . . 2 . . 3 . 2 . . . . . 1 4 . 4 . 1 Engine 6 | . . 2 . . 2 . 2 . . . . . . . . . . . Core 1 | . . . . . 1 . . . . . . . . . . . . . Reactor 10 | . . . . . . . . . . . . . 1 4 . 4 . 1 Propulsion 67 | 1 2 6 . . 17 1 3 2 1 . 2 3 3 16 . 9 . 1 Treads 16 | . 1 2 . . 5 1 . . . . . . 1 6 . . . . Leg 39 | . . . . . 6 . 3 2 1 . 2 3 2 10 . 9 . 1 Wheel 12 | 1 1 4 . . 6 . . . . . . . . . . . . . Hover . | . . . . . . . . . . . . . . . . . . . Flight . | . . . . . . . . . . . . . . . . . . . Utility 152 | 1 6 4 . 1 9 6 15 7 3 3 7 8 13 27 5 13 11 13 Device 91 | 1 2 2 . 1 3 1 8 2 1 1 4 2 11 19 4 12 8 9 Storage 11 | . 2 . . . 1 . 1 1 . 1 . . 1 2 1 . 1 . Processor 8 | . 1 . . . . 2 . . . . . 1 . 2 . . 2 . Hackware 7 | . . . . . . 2 1 . . 1 . 3 . . . . . . Protection 35 | . 1 2 . . 5 1 5 4 2 . 3 2 1 4 . 1 . 4 Artifact . | . . . . . . . . . . . . . . . . . . . Weapon 111 | . 1 5 . . 9 3 13 4 3 2 6 6 7 14 4 17 13 4 Energy Gun 8 | . . . . . 1 . 2 . 1 . 1 1 1 1 . . . . Energy Cannon 8 | . . . . . . 1 . . . . 1 . . 1 . 2 2 1 Ballistic Gun 56 | . 1 4 . . 6 1 4 1 2 1 2 3 3 8 2 11 4 3 Ballistic Cannon 8 | . . . . . . . 3 2 . . . 2 1 . . . . . Launcher 7 | . . 1 . . 2 . . 1 . . . . . 1 . 1 1 . Special Weapon . | . . . . . . . . . . . . . . . . . . . Impact Weapon . | . . . . . . . . . . . . . . . . . . . Slashing Weapon 14 | . . . . . . 1 4 . . 1 2 . 2 3 1 . . . Piercing Weapon 10 | . . . . . . . . . . . . . . . 1 3 6 . Special Melee Weapon . | . . . . . . . . . . . . . . . . . . . Unidentified Prototypes 18 | . . . . 1 2 . 5 . 3 . . . . 7 . . . . Parts Lost 45 | . 1 6 . 1 2 1 . . 3 . 1 7 3 8 . . . 12 Power 4 | . . 1 . . . . . . . . . . . 1 . . . 2 Propulsion 14 | . . 1 . . 2 . . . . . 1 3 2 3 . . . 2 Utility 18 | . 1 1 . 1 . 1 . . 2 . . 1 . 4 . . . 7 Weapon 9 | . . 3 . . . . . . 1 . . 3 1 . . . . 1 Highest Loss Streak 12 | . 1 3 . 1 1 1 . . 2 . 1 4 1 3 . . . 12 Average Slot Usage (%) 98 | . 99 99 100 100 99 97 99 99 99 100 100 93 97 98 95 99 99 95 Engine 4 | . 14 14 14 14 8 . 5 6 6 6 6 5 4 . . . . . Reactor 2 | . . . . . . . . . . . . . . 5 4 8 8 8 Treads 7 | . 10 15 14 14 17 14 6 6 6 6 6 4 1 18 . . . . Leg 17 | . 3 . . . . 23 25 26 25 26 26 22 24 6 23 25 24 24 Wheel 2 | . 14 12 14 14 17 . . . . . . . . . . . . . Device 11 | . 11 12 14 14 10 . 6 5 5 9 11 8 11 12 14 13 16 15 Storage 9 | . 14 14 14 14 9 7 6 8 13 9 6 5 8 11 9 8 8 8 Processor 2 | . . . . . . 2 6 3 . . . . . . 4 4 6 4 Hackware 13 | . . . . . . 9 13 13 13 13 13 21 21 21 19 17 16 9 Protection 6 | . 1 1 . . 16 14 5 6 6 6 7 4 7 6 4 3 4 10 Ballistic Gun 12 | . 27 27 28 28 17 8 8 6 14 8 10 5 5 13 9 12 13 14 Ballistic Cannon 1 | . . . . . . . 2 11 1 . . . 5 . . . . . Slashing Weapon 1 | . . . . . . 3 4 . . 4 2 2 2 . 3 . . . Naked Turns . | . . . . . . . . . . . . . . . . . . . Heaviest Build 161 | 12 29 30 27 27 70 60 80 90 84 80 84 86 99 104 110 134 143 161 Greatest Support 172 | 20 16 46 16 16 60 60 82 90 90 90 90 100 100 136 125 172 172 172 Greatest Overweight (x) 3 | 1 2 2 1 2 3 . 1 1 . . 1 1 1 2 . . . . Average Overweight (x) . | . 1 1 1 1 1 . . . . . . . . . . . . . Largest Inventory Capacity 20 | 8 15 15 15 15 20 20 20 20 20 20 20 20 20 20 20 20 20 20 Average Capacity 19 | 8 13 15 15 15 18 20 20 20 20 20 20 20 20 20 20 20 20 20 Most Carried 20 | 7 15 15 15 15 20 20 20 20 20 20 20 20 20 20 20 20 20 20 Average Carried 18 | 6 13 13 14 14 18 19 19 19 19 19 19 18 16 19 19 19 19 19 Final Capacity 20 | 8 15 15 15 15 20 20 20 20 20 20 20 20 20 20 20 20 20 20 Final Carried 20 | 7 15 14 15 15 20 20 20 20 20 20 20 13 20 20 20 20 20 15 Class Distribution -------------------- 28% | Hacker-Tank 17% | Scavenger-Mutant 12% | Hacker-Assassin 12% | Hacker-Mutant 9% | Mutant 6% | Hacker-Skirmisher 6% | Scavenger-Tank 5% | Scavenger-Assassin Dominant Class ---------------- Mutant | -10/Materials Mutant | -10/Mines Scavenger-Mutant | -10/Exiles Scavenger-Mutant | -9/Mines Scavenger-Mutant | -8/Materials Mutant | -7/Factory Hacker-Assassin | -6/Factory Hacker-Tank | -6/Extension Hacker-Tank | -6/Cetus Scavenger-Mutant | -6/Archives Scavenger-Tank | -6/Hub_04(d) Scavenger-Mutant | -5/Factory Hacker-Mutant | -4/Factory Hacker-Tank | -4/Armory Hacker-Assassin | -3/Research Scavenger-Assassin | -2/Research Hacker-Assassin | -1/Access Scavenger-Tank | -1/Command Resources | -11 -10 -10 -10 -9 -8 -7 -6 -6 -6 -6 -6 -5 -4 -4 -3 -2 -1 -1 ----------- Run | Scr Mat Min Exi Min Mat Fac Fac Ext Cet Arc Hub Fac Fac Arm Res Res Acc Com Matter Collected 10098 | 256 336 612 . . 910 101 725 907 179 130 235 207 1410 1866 81 803 547 793 Remotely 70 | . 70 . . . . . . . . . . . . . . . . . Salvage Created 13360 | 83 482 352 . . 1125 101 582 871 97 322 605 253 1723 2485 81 1251 1200 1747 Parts 686 | 3 45 11 . . 70 3 33 29 6 8 44 8 65 119 4 88 77 73 Haulers Intercepted 9 | . 2 . . . 4 . 2 . . . . . . . . 1 . . Recyclers Shooed 14 | . 2 3 . . 1 . 1 3 . . . . 3 . . . 1 . Parts Field Recycled . | . . . . . . . . . . . . . . . . . . . Retrieved Matter . | . . . . . . . . . . . . . . . . . . . Parts Self-Destructed . | . . . . . . . . . . . . . . . . . . . Prevented . | . . . . . . . . . . . . . . . . . . . Kills | -11 -10 -10 -10 -9 -8 -7 -6 -6 -6 -6 -6 -5 -4 -4 -3 -2 -1 -1 ------- Run | Scr Mat Min Exi Min Mat Fac Fac Ext Cet Arc Hub Fac Fac Arm Res Res Acc Com Combat Hostiles Destroyed 175 | . 6 13 . . 20 2 7 13 2 1 8 6 18 37 1 16 14 11 Guns 132 | . 6 9 . . 16 1 2 6 2 1 7 6 7 36 1 11 10 11 Cannons 25 | . . . . . . 1 5 7 . . . . 11 1 . . . . AOE 17 | . . 4 . . 4 . . . . . . . . . . 5 4 . Classes Destroyed 16 | 2 6 1 . . 2 1 1 1 . . 1 . . 1 . . . . Worker 21 | . 1 1 . . 1 . 2 3 . . 2 . 6 . . 3 . 2 Builder 9 | . 2 1 . . . . . . . . 2 . 3 . . . 1 . Tunneler 2 | 1 . . . . . . 1 . . . . . . . . . . . Hauler 9 | . 2 . . . 4 . 2 . . . . . . . . 1 . . Recycler 18 | 1 2 3 . . 1 . . 2 . . . . 4 . . 2 3 . Operator 11 | . . . . . 2 . . . . 7 1 . . 1 . . . . Watcher 10 | . 2 . . . 2 . 1 1 . . 1 . . 2 . . 1 . Swarmer 31 | . 2 3 . . 7 . . . 1 . . 4 4 . . 5 5 . Grunt 40 | . 4 . . . 8 . 2 6 . . 1 . 7 12 . . . . Brawler 1 | . . . . . . . . 1 . . . . . . . . . . Duelist 4 | . . . . . . . 2 1 . . . . . 1 . . . . Sentry 28 | . . . . . 5 1 1 5 . 1 4 2 4 1 1 2 1 . Specialist 2 | . . . . . . . . . . . . . . 2 . . . . Hunter 8 | . . . . . . . . . . . 2 . . 4 . . . 2 Programmer 48 | . . . . . . 1 2 . . . 1 . 3 17 . 9 8 7 Cetus Guard 1 | . . . . . . . . . 1 . . . . . . . . . Combat Programmer 2 | . . . . . . . . . . . . . . . . . . 2 Assembled 10 | . . 10 . . . . . . . . . . . . . . . . Thug 1 | . . . . . . . . 1 . . . . . . . . . . Best Kill Streak 10 | 2 3 5 . . 6 2 4 6 1 2 5 4 10 5 1 5 6 4 Combat Bots Only 5 | . 2 4 . . 4 2 3 5 1 1 2 4 4 4 1 5 4 4 Max Kills in Single Turn 4 | 1 1 2 . . 2 1 2 2 1 1 3 2 3 1 1 4 3 1 Gunslinging 1 | . . . . . . . . . . . . 1 . . . . . . Exploded 4 | . . 2 . . 2 . . . . . . . . . . 4 2 . Melee . | . . . . . . . . . . . . . . . . . . . Uniques/NPCs Destroyed . | . . . . . . . . . . . . . . . . . . . Combat | -11 -10 -10 -10 -9 -8 -7 -6 -6 -6 -6 -6 -5 -4 -4 -3 -2 -1 -1 -------- Run | Scr Mat Min Exi Min Mat Fac Fac Ext Cet Arc Hub Fac Fac Arm Res Res Acc Com Damage Taken 13089 | . 314 684 . . 1060 206 321 747 270 214 594 1251 746 2462 86 318 189 3627 Core 919 | . 44 82 . . 55 51 5 53 . 20 8 126 109 224 . 8 34 100 Absorbed by Shields 4834 | . . . . . . . . 727 24 . . . 748 1632 91 340 205 1067 Core Remaining (%) 86 | 100 . . . 49 90 92 . . . . 89 87 . 71 100 99 . . Volleys Fired 670 | 9 36 49 . . 84 10 25 38 10 11 27 20 64 118 4 48 35 82 Largest 4 | 2 2 2 . . 2 2 3 3 3 3 3 3 3 3 4 4 4 4 Hottest 208 | 40 40 40 . . 51 90 139 114 95 145 148 148 182 166 130 149 145 208 Shots Fired 1737 | 18 72 94 . . 167 16 61 105 26 22 55 59 165 352 16 126 104 279 Gun 1502 | 18 72 90 . . 164 6 33 36 26 22 48 52 103 344 16 107 97 268 Cannon 219 | . . . . . . 10 28 64 . . 7 7 62 8 . 17 5 11 Launcher 16 | . . 4 . . 3 . . 5 . . . . . . . 2 2 . Special . | . . . . . . . . . . . . . . . . . . . Kinetic 1586 | 18 72 90 . . 164 6 51 100 26 20 35 46 126 344 16 107 97 268 Thermal 135 | . . . . . . 10 10 . . 2 20 13 39 8 . 17 5 11 Explosive 16 | . . 4 . . 3 . . 5 . . . . . . . 2 2 . Electromagnetic . | . . . . . . . . . . . . . . . . . . . Robot Hit Streak 24 | 6 16 14 . . 17 8 6 10 7 8 14 22 9 24 4 10 11 12 Robot Miss Streak 8 | 2 3 4 . . 3 2 5 4 4 3 3 5 4 4 1 3 3 8 Penetration Max 2 | . . . . . 1 . 1 1 . 1 1 . 1 1 . . 1 2 Secondary Targets 17 | . . 1 . . 4 . . . 1 . 1 1 . 3 . . 3 3 Max Gunslinging Chain 1 | . . 1 . . 1 . . . 1 . 1 1 . 1 . . 1 1 Shots Hit Robots 1134 | 12 51 57 . . 108 9 51 74 14 30 30 39 115 245 11 60 63 165 Core Hits 563 | 3 23 31 . . 47 3 39 69 8 9 18 13 63 96 4 38 36 63 Critical Kills 45 | . . 1 . . . . . 1 . . 3 . 13 9 . 4 7 7 Critical Parts Destroyed 93 | . 1 2 . . 1 . 1 . . 1 1 3 20 26 1 3 14 19 Critical Strikes 143 | . 1 3 . . 1 . 1 2 . 1 4 3 36 35 1 7 22 26 Burn 3 | . . . . . . . . . . . . . 3 . . . . . Destroy 139 | . 1 3 . . 1 . 1 1 . 1 4 3 33 35 1 7 22 26 Blast 1 | . . . . . . . . 1 . . . . . . . . . . Melee Attacks 187 | . . . . . . 6 25 11 . 16 10 2 13 7 8 40 35 14 Impact . | . . . . . . . . . . . . . . . . . . . Slashing 98 | . . . . . . 6 25 11 . 16 10 2 13 7 8 . . . Piercing 89 | . . . . . . . . . . . . . . . . 40 35 14 Sneak Attacks 25 | . . . . . . . 1 . . 11 1 . 3 1 1 5 2 . Combat Hostiles . | . . . . . . . . . . . . . . . . . . . Follow-up Attacks . | . . . . . . . . . . . . . . . . . . . Damage Inflicted 35085 | 124 585 968 . . 2262 228 1642 2860 413 2127 1581 890 3300 7186 369 2804 2767 4979 Guns 23305 | 124 585 645 . . 2007 105 632 635 413 418 894 838 1989 6876 262 1648 1498 3736 Cannons 3278 | . . . . . . 123 538 1506 . . . 52 852 173 . . . 34 Explosions 3180 | . . 323 . . 255 . . 497 . . 517 . . . . 676 912 . Melee 5277 | . . . . . . . 472 177 . 1709 170 . 459 137 107 480 357 1209 Ramming 45 | . . . . . . . . 45 . . . . . . . . . . Kinetic 24832 | 124 585 645 . . 2007 105 968 2141 413 392 636 595 2201 6876 262 1648 1498 3736 Thermal 1751 | . . . . . . 123 202 . . 26 258 295 640 173 . . . 34 Explosive 2663 | . . 323 . . 255 . . 497 . . . . . . . 676 912 . Electromagnetic 517 | . . . . . . . . . . . 517 . . . . . . . Impact . | . . . . . . . . . . . . . . . . . . . Slashing 3231 | . . . . . . . 472 177 . 1709 170 . 459 137 107 . . . Piercing 2046 | . . . . . . . . . . . . . . . . 480 357 1209 Highest Corruption 18 | . 1 1 1 1 . 1 . . . . 1 . 1 8 . 2 . 18 Average Corruption 2 | . 1 1 1 1 . 1 . . . . 1 . 1 3 . 1 . 7 Corruption Purged 7 | . . . . . . . . . . . . . 1 4 . 2 . . Effects 70 | . 1 4 2 2 . . . . . . . . 4 47 . 1 . 9 Message Errors 23 | . . . 1 . . . . . . . . . 3 16 . 1 . 2 Matter Fused 14 | . . . . . . . . . . . . . . 11 . . . 3 Heat Flow Errors 6 | . . . . . . . . . . . . . . 6 . . . . Energy Discharges 9 | . . 2 1 2 . . . . . . . . . 4 . . . . Data Loss (minor) 9 | . 1 2 . . . . . . . . . . 1 5 . . . . Data Loss (major) 1 | . . . . . . . . . . . . . . 1 . . . . Misfires 3 | . . . . . . . . . . . . . . 3 . . . . Weapon Failures 5 | . . . . . . . . . . . . . . 1 . . . 4 Overload Shots . | . . . . . . . . . . . . . . . . . . . Overflow Damage 1242 | . . . . . . . 50 48 . 747 134 . 78 . 92 22 56 15 Projectiles 4 | . . . . . . . . 4 . . . . . . . . . . Explosions 129 | . . . . . . . . . . . 51 . . . . 22 56 . Melee 1109 | . . . . . . . 50 44 . 747 83 . 78 . 92 . . 15 Knockbacks 42 | . . . . . . . 7 16 . . . 3 16 . . . . . Impact . | . . . . . . . . . . . . . . . . . . . Kinetic 36 | . . . . . . . 5 16 . . . 3 12 . . . . . Secondary 6 | . . . . . . . 2 . . . . . 4 . . . . . Self-Inflicted Damage 100 | . . . . . . . . . . . 100 . . . . . . . Shots 1 | . . . . . . . . . . . 1 . . . . . . . Rammed . | . . . . . . . . . . . . . . . . . . . Targets Rammed 1 | . . . . . . . . 1 . . . . . . . . . . Kicked 1 | . . . . . . . . 1 . . . . . . . . . . Crushed . | . . . . . . . . . . . . . . . . . . . Highest Temperature 315 | . 24 20 . . 141 126 213 285 9 120 243 84 315 242 56 238 196 198 Average Temperature 70 | . 8 7 . . 39 47 61 88 5 43 99 24 96 42 28 73 83 105 Received Heat Transfer 1978 | . 129 40 . . 567 36 90 230 . 36 114 135 172 269 16 16 8 120 Effects 1 | . . . . . . . . . . . . . 1 . . . . . Damage (minor) 1 | . . . . . . . . . . . . . 1 . . . . . Siege Activations . | . . . . . . . . . . . . . . . . . . . Robots Corrupted 2 | . . . . . . . . . . . 2 . . . . . . . Combat Hostiles 1 | . . . . . . . . . . . 1 . . . . . . . Parts Fried 2 | . . . . . . . . . . . 2 . . . . . . . Impact Corruptions . | . . . . . . . . . . . . . . . . . . . Robots Melted . | . . . . . . . . . . . . . . . . . . . Combat Hostiles . | . . . . . . . . . . . . . . . . . . . Parts Melted 6 | . . . . . 2 . . . . 1 . . 3 . . . . . Heat Transferred 2479 | . . . . . . 148 259 . . 37 296 407 1110 185 . . . 37 Parts Sabotaged 2 | . . . . . . . . . . . . . . 2 . . . . Parts Stolen . | . . . . . . . . . . . . . . . . . . . Parts Stripped . | . . . . . . . . . . . . . . . . . . . Power Chain Reactions . | . . . . . . . . . . . . . . . . . . . Missiles Intercepted 1 | . . . . . . . . . . . . . . . . . . 1 Alert | -11 -10 -10 -10 -9 -8 -7 -6 -6 -6 -6 -6 -5 -4 -4 -3 -2 -1 -1 ------- Run | Scr Mat Min Exi Min Mat Fac Fac Ext Cet Arc Hub Fac Fac Arm Res Res Acc Com Peak Influence 584 | 10 163 223 . 12 584 269 150 320 318 252 376 175 297 541 313 368 364 130 Initial 283 | . 6 45 . . . 235 . 10 91 127 88 156 60 144 283 141 217 . Average 165 | 4 77 75 . 4 378 155 42 186 233 219 157 100 101 266 255 145 209 46 Maximum Alert Level 2 | . . 1 . . 2 1 . 1 1 1 1 . 1 2 1 1 1 . Low Security (%) 62 | 100 100 96 . 100 9 52 100 62 33 15 61 100 83 35 25 58 40 100 Level 1 30 | . . 3 . . 35 47 . 37 66 84 38 . 16 38 74 41 59 . Level 2 7 | . . . . . 54 . . . . . . . . 25 . . . . Level 3 . | . . . . . . . . . . . . . . . . . . . Level 4 . | . . . . . . . . . . . . . . . . . . . Level 5 . | . . . . . . . . . . . . . . . . . . . High Security . | . . . . . . . . . . . . . . . . . . . Max Security . | . . . . . . . . . . . . . . . . . . . Squads Dispatched 42 | . . . . . 2 2 6 2 . . 6 2 2 8 1 6 3 2 Investigation 7 | . . . . . 1 1 2 1 . . 1 . . 1 . . . . Extermination 23 | . . . . . . 1 2 . . . 1 . 1 6 1 6 3 2 Reinforcement 12 | . . . . . 1 . 2 1 . . 4 2 1 1 . . . . Assault . | . . . . . . . . . . . . . . . . . . . Garrison . | . . . . . . . . . . . . . . . . . . . Intercept . | . . . . . . . . . . . . . . . . . . . Construction Impeded 4 | . . . . . . . . 1 . . 1 1 1 . . . . . Haulers Reinforced 2 | . . . . . . . 2 . . . . . . . . . . . Cargo Convoy Interrupts . | . . . . . . . . . . . . . . . . . . . Stealth | -11 -10 -10 -10 -9 -8 -7 -6 -6 -6 -6 -6 -5 -4 -4 -3 -2 -1 -1 --------- Run | Scr Mat Min Exi Min Mat Fac Fac Ext Cet Arc Hub Fac Fac Arm Res Res Acc Com Distress Signals 22 | . 2 . . . 2 . . 2 1 1 2 . 3 6 1 . 1 1 Communications Jammed . | . . . . . . . . . . . . . . . . . . . Distress Signals . | . . . . . . . . . . . . . . . . . . . Times Spotted 314 | . 11 22 . . 35 2 10 26 11 17 14 12 34 60 2 15 24 19 Peak Tracking Total 9 | . 4 9 . . 6 2 4 5 5 1 3 4 4 9 4 4 7 8 Tactical Retreats 20 | . 3 1 . . 2 . . . 1 . . 1 4 4 . . 3 1 Traps | -11 -10 -10 -10 -9 -8 -7 -6 -6 -6 -6 -6 -5 -4 -4 -3 -2 -1 -1 ------- Run | Scr Mat Min Exi Min Mat Fac Fac Ext Cet Arc Hub Fac Fac Arm Res Res Acc Com Traps Triggered 9 | . 2 . . . . . 2 1 . . 2 . . 2 . . . . Indirectly . | . . . . . . . . . . . . . . . . . . . Trap Hack Attempts . | . . . . . . . . . . . . . . . . . . . Triggered . | . . . . . . . . . . . . . . . . . . . Disarmed . | . . . . . . . . . . . . . . . . . . . Reprogrammed . | . . . . . . . . . . . . . . . . . . . Reused . | . . . . . . . . . . . . . . . . . . . Traps Extracted . | . . . . . . . . . . . . . . . . . . . Installed . | . . . . . . . . . . . . . . . . . . . Triggered 1 | . . 1 . . . . . . . . . . . . . . . . Machines | -11 -10 -10 -10 -9 -8 -7 -6 -6 -6 -6 -6 -5 -4 -4 -3 -2 -1 -1 ---------- Run | Scr Mat Min Exi Min Mat Fac Fac Ext Cet Arc Hub Fac Fac Arm Res Res Acc Com Machines Disabled 38 | . . 3 . . 6 1 2 3 1 3 11 1 2 3 1 1 . . Max in Single Turn 9 | . . 1 . . 1 1 1 2 . 1 9 1 1 1 1 1 . . Garrison Access 5 | . . . . . 1 . 1 . . . 1 . 1 . . . 1 . Network Hub 1 | . . . . . . . . . . . 1 . . . . . . . Machines Sabotaged . | . . . . . . . . . . . . . . . . . . . Garrisons Compromised . | . . . . . . . . . . . . . . . . . . . Overloaded Fab Kills . | . . . . . . . . . . . . . . . . . . . Fab Network Shutdowns 1 | . . . . . . . . . . . . . . 1 . . . . Hacking | -11 -10 -10 -10 -9 -8 -7 -6 -6 -6 -6 -6 -5 -4 -4 -3 -2 -1 -1 --------- Run | Scr Mat Min Exi Min Mat Fac Fac Ext Cet Arc Hub Fac Fac Arm Res Res Acc Com Machines Accessed 76 | . 8 . 4 1 6 5 9 8 . . 4 4 4 5 3 6 9 . Terminals 53 | . 6 . . 1 5 3 6 8 . . 3 2 2 3 3 3 8 . Fabricators 5 | . . . . . . 1 1 . . . . . . 2 . 1 . . Repair Stations 3 | . . . . . . 1 . . . . . 1 . . . 1 . . Recycling Units 4 | . 2 . . . . . . . . . . 1 . . . 1 . . Scanalyzers 2 | . . . . . . . 1 . . . . . 1 . . . . . Garrison Access 5 | . . . . . 1 . 1 . . . 1 . 1 . . . 1 . Total Hacks 249 | . 20 . 5 2 22 14 32 15 . . 8 19 13 31 6 27 35 . Successful 158 | . 11 . 5 2 9 6 19 11 . . 4 14 11 20 3 24 19 . Failed 89 | . 9 . . . 12 8 13 4 . . 4 5 2 11 3 3 15 . Catastrophic 8 | . . . . . 3 1 2 . . . . . . . 1 . 1 . Database Lockouts 2 | . . . . . 1 . . . . . . . . . . . 1 . Manual 130 | . 12 . 1 2 16 9 15 4 . . 5 13 5 14 6 9 19 . Terminals 177 | . 17 . . 2 20 10 18 15 . . 6 12 9 16 6 13 33 . Fabricators 34 | . . . . . . 3 6 . . . . . . 15 . 10 . . Repair Stations 7 | . . . . . . 1 . . . . . 4 . . . 2 . . Recycling Units 8 | . 3 . . . . . . . . . . 3 . . . 2 . . Scanalyzers 10 | . . . . . . . 7 . . . . . 3 . . . . . Garrison Access 8 | . . . . . 2 . 1 . . . 2 . 1 . . . 2 . Terminal Hacks 76 | . 4 . 5 2 4 2 7 8 . . 1 6 6 6 1 9 15 . Record 4 | . . . 4 . . . . . . . . . . . . . . . Part Schematic 6 | . 1 . . . 1 1 1 . . . . . . . . 2 . . Prototype ID Bank 9 | . . . . 2 1 . 2 . . . . 1 . . . . 3 . Open Door 9 | . . . . . . . 1 5 . . . . . . . . 3 . Level Access Points 6 | . . . . . . 1 1 . . . . 1 . 1 1 1 . . Branch Access Points 4 | . . . . . . . 1 . . . . 1 1 . . . 1 . Emergency Access Points 1 | . 1 . . . . . . . . . . . . . . . . . Machine Index 1 | . . . . . . . . . . . . 1 . . . . . . Terminal Index 2 | . . . . . . . . . . . . . 1 . . . 1 . Fabricator Index 1 | . . . . . . . . . . . . . . . . 1 . . Alert Level 2 | . . . . . 1 . . . . . . . . . . 1 . . Unreport Threat 18 | . . . . . . . 1 2 . . 1 2 2 3 . 1 6 . Locate Traps 7 | . 2 . . . 1 . . 1 . . . . 1 1 . 1 . . Recall Extermination 1 | . . . . . . . . . . . . . . . . 1 . . Zone Layout 4 | . . . . . . . . . . . . . 1 1 . 1 1 . EX-Prototype ID Bank 1 | . . . 1 . . . . . . . . . . . . . . . Fabricator Hacks 23 | . . . . . . 2 2 . . . . . . 12 . 7 . . Load Schematic 7 | . . . . . . 1 1 . . . . . . 3 . 2 . . Build 16 | . . . . . . 1 1 . . . . . . 9 . 5 . . Repair Station Hacks 6 | . . . . . . . . . . . . 4 . . . 2 . . Scan Component 3 | . . . . . . . . . . . . 2 . . . 1 . . Repair 3 | . . . . . . . . . . . . 2 . . . 1 . . Recycling Unit Hacks 3 | . 1 . . . . . . . . . . 1 . . . 1 . . Retrieve Components 3 | . 1 . . . . . . . . . . 1 . . . 1 . . Scanalyzer 9 | . . . . . . . 7 . . . . . 2 . . . . . Insert Component 4 | . . . . . . . 3 . . . . . 1 . . . . . Analyze 5 | . . . . . . . 4 . . . . . 1 . . . . . Garrison Access Hacks 5 | . . . . . 1 . 1 . . . 1 . 1 . . . 1 . Seal Access 5 | . . . . . 1 . 1 . . . 1 . 1 . . . 1 . Unauthorized Hacks 36 | . 6 . . . 4 2 2 3 . . 2 3 2 2 2 5 3 . Terminals 31 | . 4 . . . 4 2 2 3 . . 2 3 2 2 2 2 3 . Track 4 | . 2 . . . 1 . . 1 . . . . . . . . . . Assimilate 2 | . . . . . . . . . . . . 1 . . . . 1 . Botnet 24 | . 2 . . . 2 2 2 2 . . 2 2 2 2 2 2 2 . Disrupt 1 | . . . . . 1 . . . . . . . . . . . . . Fabricators 2 | . . . . . . . . . . . . . . . . 2 . . Prioritize 1 | . . . . . . . . . . . . . . . . 1 . . Siphon 1 | . . . . . . . . . . . . . . . . 1 . . Repair Stations . | . . . . . . . . . . . . . . . . . . . Recycling Units 3 | . 2 . . . . . . . . . . . . . . 1 . . Mask 3 | . 2 . . . . . . . . . . . . . . 1 . . Scanalyzers . | . . . . . . . . . . . . . . . . . . . Garrison Access . | . . . . . . . . . . . . . . . . . . . Data Cores Recovered 1 | . . . . . 1 . . . . . . . . . . . . . Used 1 | . . . . . 1 . . . . . . . . . . . . . Hacking Detections 59 | . 6 . . 1 5 5 7 4 . . 4 4 3 4 3 5 8 . Full Trace Events 4 | . 1 . . . 1 1 1 . . . . . . . . . . . Feedback Events 1 | . . . . . . 1 . . . . . . . . . . . . Hackware Fried 1 | . . . . . . 1 . . . . . . . . . . . . Feedback Blocked . | . . . . . . . . . . . . . . . . . . . Robot Schematics Acquired . | . . . . . . . . . . . . . . . . . . . Robots Built . | . . . . . . . . . . . . . . . . . . . Matter . | . . . . . . . . . . . . . . . . . . . Time . | . . . . . . . . . . . . . . . . . . . Total Robot Build Rating . | . . . . . . . . . . . . . . . . . . . Part Schematics Acquired 10 | . 1 . . . 1 1 4 . . . . . 1 . . 2 . . Parts Built 15 | . . . . . . 1 1 . . . . . . 8 . 5 . . Matter 4155 | . . . . . . 146 190 . . . . . . 2603 . 1216 . . Time 1250 | . . . . . . 36 47 . . . . . . 687 . 480 . . Total Part Build Rating 104 | . . . . . . 3 5 . . . . . . 52 . 44 . . Parts Repaired 2 | . . . . . . . . . . . . 1 . . . 1 . . Time 252 | . . . . . . . . . . . . 216 . . . 36 . . Parts Recycled . | . . . . . . . . . . . . . . . . . . . Recycled Matter . | . . . . . . . . . . . . . . . . . . . Retrieved Matter . | . . . . . . . . . . . . . . . . . . . Retrieved Components 8 | . 5 . . . . . . . . . . . . . . 3 . . Parts Scanalyzed 4 | . . . . . . . 3 . . . . . 1 . . . . . Part Schematics Acquired 4 | . . . . . . . 3 . . . . . 1 . . . . . Parts Damaged . | . . . . . . . . . . . . . . . . . . . Bothacking | -11 -10 -10 -10 -9 -8 -7 -6 -6 -6 -6 -6 -5 -4 -4 -3 -2 -1 -1 ------------ Run | Scr Mat Min Exi Min Mat Fac Fac Ext Cet Arc Hub Fac Fac Arm Res Res Acc Com Used RIF Installer . | . . . . . . . . . . . . . . . . . . . Robots Hacked . | . . . . . . . . . . . . . . . . . . . Non-combat . | . . . . . . . . . . . . . . . . . . . Combat . | . . . . . . . . . . . . . . . . . . . Robot Hacks Applied . | . . . . . . . . . . . . . . . . . . . Relay Couplers Released . | . . . . . . . . . . . . . . . . . . . Robots Rewired 10 | . . . . . . . . 10 . . . . . . . . . . Allies Hacked . | . . . . . . . . . . . . . . . . . . . Hacks Repelled . | . . . . . . . . . . . . . . . . . . . Allies | -11 -10 -10 -10 -9 -8 -7 -6 -6 -6 -6 -6 -5 -4 -4 -3 -2 -1 -1 -------- Run | Scr Mat Min Exi Min Mat Fac Fac Ext Cet Arc Hub Fac Fac Arm Res Res Acc Com Total Allies 24 | . . 1 . 5 . . . 17 . . . 1 . . . . . . Largest Group 13 | . . 1 . 5 5 . . 13 13 4 1 1 . . . . . . Highest-Rated Group 357 | . . 31 . 78 78 . . 357 357 98 37 10 . . . . . . Highest-Rated Ally 156 | . . 31 . 31 31 . . 156 37 37 37 10 . . . . . . Total Orders 4 | . . . . . . . . . . . . 4 . . . . . . STAY 2 | . . . . . . . . . . . . 2 . . . . . . FOLLOW 2 | . . . . . . . . . . . . 2 . . . . . . Ally Attacks 244 | . . 15 . . 60 . . 79 75 11 4 . . . . . . . Total Damage 4653 | . . 228 . . 647 . . 2056 1403 251 68 . . . . . . . Kills 39 | . . 2 . . 10 . . 13 10 3 1 . . . . . . . Allies Corrupted . | . . . . . . . . . . . . . . . . . . . Allies Melted 1 | . . . . . . . . 1 . . . . . . . . . . Intel | -11 -10 -10 -10 -9 -8 -7 -6 -6 -6 -6 -6 -5 -4 -4 -3 -2 -1 -1 ------- Run | Scr Mat Min Exi Min Mat Fac Fac Ext Cet Arc Hub Fac Fac Arm Res Res Acc Com Robot Analysis Total . | . . . . . . . . . . . . . . . . . . . Derelict Logs Recovered 1 | . . . . 1 . . . . . . . . . . . . . . Drone Launches . | . . . . . . . . . . . . . . . . . . . Drone Recoveries . | . . . . . . . . . . . . . . . . . . . Exploration | -11 -10 -10 -10 -9 -8 -7 -6 -6 -6 -6 -6 -5 -4 -4 -3 -2 -1 -1 ------------- Run | Scr Mat Min Exi Min Mat Fac Fac Ext Cet Arc Hub Fac Fac Arm Res Res Acc Com Turns Passed 18437 | 62 577 855 287 369 1313 840 1552 1352 229 327 728 682 1479 2671 549 2524 1102 939 Spaces Moved 10336 | 31 405 487 302 347 784 539 1005 752 136 200 391 378 598 1043 390 1492 728 328 Core . | . . . . . . . . . . . . . . . . . . . Treads 703 | . . 1 . . . . . . . . . . . 702 . . . . Legs 7299 | 11 . . . . 10 539 1005 752 136 200 391 378 598 341 390 1492 728 328 Wheels 2334 | 20 405 486 302 347 774 . . . . . . . . . . . . . Hover . | . . . . . . . . . . . . . . . . . . . Flight . | . . . . . . . . . . . . . . . . . . . Fastest Speed 95 | 95 95 95 95 95 95 130 125 122 120 120 120 122 124 120 120 113 113 113 Average Speed 122 | 103 103 96 95 95 105 130 125 131 120 120 121 128 138 159 120 119 113 113 Slowest Speed 285 | 120 110 160 95 110 130 130 207 205 122 120 200 207 207 285 120 120 113 113 Overloaded Moves . | . . . . . . . . . . . . . . . . . . . Propulsion Burnouts . | . . . . . . . . . . . . . . . . . . . Robots Hopped 2 | . . . . . . . . . 2 . . . . . . . . . Cave-ins Triggered . | . . . . . . . . . . . . . . . . . . . Exploration Rate (%) 41 | 4 72 66 69 74 72 7 31 82 58 80 42 11 11 33 14 24 22 8 Regions Visited 18 Branch Regions 9 Pre-discovered Areas 1 | . . . 1 . . . . . . . . . . . . . . . Known Exits Taken 9 | . . . . . . 1 1 . . . 1 1 1 1 1 1 1 . Unknown Exits Taken 9 | 1 1 1 1 1 1 . . 1 1 1 . . . . . . . . Scrap Searched 3 | . . 1 . 2 . . . . . . . . . . . . . . Spaces Dug 190 | . . 16 . . . 7 17 . . . 7 2 5 6 7 81 35 7 Terrain Destroyed 557 | . . 23 . . 17 7 18 36 6 3 181 15 12 29 49 92 44 25 Melee 82 | . . . . . . 5 12 . . . 2 2 5 4 7 25 18 2 Projectile 155 | . . . . . 3 2 6 11 6 3 17 13 7 25 . 29 10 23 AOE 320 | . . 23 . . 14 . . 25 . . 162 . . . 42 38 16 . Terrain Rammed . | . . . . . . . . . . . . . . . . . . . Walls Destroyed . | . . . . . . . . . . . . . . . . . . . Machines Disabled . | . . . . . . . . . . . . . . . . . . . Actions | -11 -10 -10 -10 -9 -8 -7 -6 -6 -6 -6 -6 -5 -4 -4 -3 -2 -1 -1 --------- Run | Scr Mat Min Exi Min Mat Fac Fac Ext Cet Arc Hub Fac Fac Arm Res Res Acc Com Total 14487 | 44 499 794 302 388 1118 656 1214 1012 180 238 575 524 1088 1772 448 2070 877 688 Wait 2596 | 2 26 221 . 29 159 81 90 154 16 2 128 104 362 487 30 418 47 240 Move 10315 | 30 404 486 301 346 783 538 1004 751 132 199 390 377 597 1042 389 1491 727 328 Hop 1 | . . . . . . . . . 1 . . . . . . . . . Pick Up 137 | . 13 11 1 5 21 5 13 2 6 2 3 3 14 19 3 11 5 . Fast Attach 82 | 2 4 . . 2 9 2 8 4 3 . 2 1 6 23 2 11 . 3 Attach 73 | . 1 6 . . 9 3 4 1 3 . 1 11 5 12 2 7 3 5 Detach 36 | 1 3 . . . 5 2 2 2 2 . . 1 4 9 1 . . 4 Swap 193 | . 4 11 . . 20 5 21 8 1 5 12 5 13 26 5 25 21 11 Drop 162 | . 8 10 . 6 28 4 22 6 6 3 2 . 10 29 4 19 4 1 Fire 670 | 9 36 49 . . 84 10 25 38 10 11 27 20 64 118 4 48 35 82 Melee 187 | . . . . . . 6 25 11 . 16 10 2 13 7 8 40 35 14 Ram . | . . . . . . . . . . . . . . . . . . . Kick 1 | . . . . . . . . 1 . . . . . . . . . . Crush . | . . . . . . . . . . . . . . . . . . . Escape Stasis . | . . . . . . . . . . . . . . . . . . . Rewire 34 | . . . . . . . . 34 . . . . . . . . . . Trap . | . . . . . . . . . . . . . . . . . . . Miscellaneous . | . . . . . . . . . . . . . . . . . . . Route ------- -11/Scrapyard -10/Materials (discovered 3 exits: [*Mat] / [*Min x2]) -10/Mines (discovered 3 exits: [*Mat x2] / *Exi) -10/Exiles -9/Mines -8/Materials (discovered 2 exits: *Fac x2) -7/Factory (discovered 5 exits: *Fac x4 / [*Low]) -6/Factory (discovered 8 exits: *Fac x4 / Low x2 / *Ext x2) -6/Extension (discovered 2 exits: *Fac / [*Cet]) -6/Cetus -6/Archives (discovered 2 exits: *Hub x2) -6/Hub_04(d) (discovered 2 exits: *Fac x2) -5/Factory (discovered 6 exits: *Fac x4 / Upp x2) -4/Factory (discovered 3 exits: Upp x2 / *Arm) -4/Armory (discovered 2 exits: *Res x2) -3/Research (discovered 3 exits: *Res x3) -2/Research (discovered 3 exits: *Acc x3) -1/Access -1/Command History --------- Turn | Location | Event 1 | -11/Scrapyard | Discovered new exit (range 3) 63 | -11/Scrapyard | Entered Materials 300 | -10/Materials | Discovered new exit (range 16) 305 | -10/Materials | Build established: Mutant 349 | -10/Materials | Discovered new exit (range 3) 395 | -10/Materials | Discovered new exit (range 7) 640 | -10/Materials | Entered Mines 800 | -10/Mines | Received a Mining Laser from a helpful Derelict 903 | -10/Mines | Discovered new exit (range 7) 965 | -10/Mines | Assembled infested the area 1013 | -10/Mines | Lost 3 parts (1p1u1w) 1343 | -10/Mines | Core integrity fell below 50% 1444 | -10/Mines | Discovered new exit (range 6) 1482 | -10/Mines | Deemed a non-threat by the Exiles lab entrance 1482 | -10/Mines | Discovered new exit (range 5) 1495 | -10/Mines | Entered Exiles 1517 | -10/Exiles | Met 8R-AWN 1534 | -10/Exiles | Met EX-HEX 1584 | -10/Exiles | Met EX-DEC 1602 | -10/Exiles | Learned location of Zion (-6) 1623 | -10/Exiles | Met EX-BIN 1638 | -10/Exiles | Aligned with FarCom system 1639 | -10/Exiles | Given EX-Vault access code 1649 | -10/Exiles | Build established: Scavenger-Mutant 1661 | -10/Exiles | Opened EX-Vault 1667 | -10/Exiles | Found Superbattery 1698 | -10/Exiles | Warned to stay clear of 0b10 Research branches 1772 | -10/Exiles | Discovered new exit (range 14) 1782 | -10/Exiles | Left Exiles lab with Superbattery 1782 | -10/Exiles | Entered Mines 1796 | -9/Mines | Learned Materials trap positions 1976 | -9/Mines | Assisted by bots powering up and referring to "LRC-V3" 1996 | -9/Mines | A weapon hastily lodged in a ceiling crevice suddenly fell to the ground 2018 | -9/Mines | Found a damaged Exp. Sensor Array with a note attached 2021 | -9/Mines | Found Prototype Device 2021 | -9/Mines | Identified Exp. Sensor Array 2055 | -9/Mines | Found a hidden stash of uninstalled traps 2127 | -9/Mines | Discovered new exit (range 15) 2151 | -9/Mines | Entered Materials 2151 | -8/Materials | Accompanied by 5 allies 2151 | -8/Materials | Evolved 4 slots: Propulsion x2, Utility x2 2152 | -8/Materials | Loaded intel: 12 trap records 2156 | -8/Materials | Led the pair of lost Derelicts to an unsafe place 2922 | -8/Materials | Discovered new exit (range 7) 3378 | -8/Materials | Discovered new exit (range 4) 3389 | -8/Materials | Central database locked down 3464 | -8/Materials | Entered Factory 3464 | -7/Factory | Evolved 2 slots: Propulsion x1, Utility x1 3530 | -7/Factory | Identified exit to Factory 3719 | -7/Factory | Discovered new exit (range 15) 3871 | -7/Factory | Hacking Suite fried by hacking feedback 3907 | -7/Factory | Fabricated Machine Analyzer? 4180 | -7/Factory | Build established: Mutant 4304 | -7/Factory | Entered another Factory area 4304 | -6/Factory | Evolved 2 slots: Utility x1, Weapon x1 4740 | -6/Factory | Identified exit to Factory 5122 | -6/Factory | Identified exit to Lower Caves 5122 | -6/Factory | Identified exit to Extension 5414 | -6/Factory | Build established: Hacker-Assassin 5562 | -6/Factory | Fabricated Imp. Hacking Suite? 5856 | -6/Factory | Entered Extension 6020 | -6/Extension | Rescued A7 6535 | -6/Extension | Build established: Hacker-Tank 6635 | -6/Extension | Spotted B-75 Beast 6655 | -6/Extension | Allies destroyed B-75 Beast 6656 | -6/Extension | Spotted B-75 Beast 6674 | -6/Extension | Allies destroyed B-75 Beast 6706 | -6/Extension | Disrupted transfer network 6726 | -6/Extension | Extracted ID and sensor layout for unrecognized location from A7's data core 6988 | -6/Extension | Rescued a captive Derelict 6988 | -6/Extension | Rescued a captive Derelict 7056 | -6/Extension | Rescued a captive Derelict 7111 | -6/Extension | Rescued a captive Derelict 7112 | -6/Extension | Rescued a captive Derelict 7141 | -6/Extension | Rescued a captive Derelict 7167 | -6/Extension | Discovered exit to Factory (range 10) 7168 | -6/Extension | Discovered new exit (range 6) 7208 | -6/Extension | Entered Cetus 7208 | -6/Cetus | Accompanied by 13 allies 7225 | -6/Cetus | Spotted Cetus Guard 7225 | -6/Cetus | Spotted Cetus Guard 7229 | -6/Cetus | Spotted Cetus Guard 7230 | -6/Cetus | Spotted Cetus Guard 7238 | -6/Cetus | Destroyed Cetus Guard 7248 | -6/Cetus | Allies destroyed Cetus Guard 7248 | -6/Cetus | Allies destroyed Cetus Guard 7251 | -6/Cetus | Allies destroyed Cetus Guard 7400 | -6/Cetus | Discovered new exit (range 16) 7437 | -6/Cetus | Entered Archives 7437 | -6/Archives | Accompanied by 4 allies 7500 | -6/Archives | Discovered new exit (range 16) 7514 | -6/Archives | Discovered new exit (range 16) 7764 | -6/Archives | Entered Hub_04(d) 7764 | -6/Hub_04(d) | Accompanied by 1 ally 8012 | -6/Hub_04(d) | Discovered exit to Factory (range 6) 8202 | -6/Hub_04(d) | Discovered exit to Factory (range 16) 8470 | -6/Hub_04(d) | Network Hub disabled 8492 | -6/Hub_04(d) | Entered Factory 8492 | -5/Factory | Evolved 2 slots: Utility x2 8619 | -5/Factory | Build established: Scavenger-Mutant 8785 | -5/Factory | Identified exit to Upper Caves 8794 | -5/Factory | Identified exit to Factory 9040 | -5/Factory | Repaired Centrium Medium Armor Plating? 9174 | -5/Factory | Entered another Factory area 9174 | -4/Factory | Evolved 2 slots: Utility x2 9186 | -4/Factory | Lost 4 parts (2n2w) 9667 | -4/Factory | Build established: Hacker-Mutant 9669 | -4/Factory | Identified exit to Upper Caves 9669 | -4/Factory | Identified exit to Armory 10574 | -4/Factory | Build established: Hacker-Tank 10653 | -4/Factory | Entered Armory 11026 | -4/Armory | Lost 3 parts (1p1n1u) 11211 | -4/Armory | Fabricated Imp. KE Penetrator? 11407 | -4/Armory | Fabricated Imp. KE Penetrator (x1) 11582 | -4/Armory | Fabricated Imp. KE Penetrator (x1) 11710 | -4/Armory | Fabricated Imp. KE Penetrator (x1) 11809 | -4/Armory | Fabricated Imp. KE Penetrator? 12912 | -4/Armory | Fabricated Imp. KE Penetrator (x1) 13101 | -4/Armory | Identified exit to Research 13142 | -4/Armory | Fabricated Machine Analyzer (x1) 13158 | -4/Armory | Local fabrication network quarantined 13240 | -4/Armory | Fabricated Imp. KE Penetrator? 13323 | -4/Armory | Spotted B-86 Titan 13324 | -4/Armory | Entered Research 13324 | -3/Research | Evolved 2 slots: Utility x1, Weapon x1 13343 | -3/Research | Identified exit to Research 13596 | -3/Research | Build established: Hacker-Assassin 13873 | -3/Research | Entered another Research area 13873 | -2/Research | Evolved 2 slots: Power x1, Propulsion x1 14238 | -2/Research | Build established: Scavenger-Assassin 14284 | -2/Research | Found Antimissile System 14437 | -2/Research | Identified exit to Access 14743 | -2/Research | Fabricated EM Dispersion Field? 15184 | -2/Research | Fabricated Centrium Leg? 15338 | -2/Research | Fabricated Centrium Leg? 15459 | -2/Research | Fabricated Centrium Leg? 15574 | -2/Research | Fabricated Centrium Leg? 15600 | -2/Research | Repaired Centrium Medium Armor Plating? 16352 | -2/Research | Build established: Hacker-Mutant 16397 | -2/Research | Entered Access 16397 | -1/Access | Evolved 2 slots: Utility x2 16910 | -1/Access | Identified exit to Command 17491 | -1/Access | Central database locked down 17499 | -1/Access | Entered Command 17987 | -1/Command | Build established: Scavenger-Tank 18217 | -1/Command | Spotted Combat Programmer 18219 | -1/Command | Spotted Combat Programmer 18260 | -1/Command | Spotted M Guard 18265 | -1/Command | Spotted M Guard 18281 | -1/Command | Destroyed Combat Programmer 18283 | -1/Command | System corruption reached 10% 18291 | -1/Command | Destroyed Combat Programmer 18438 | -1/Command | Self-destructed Last Messages --------------- 18424_ Railgun destroyed. 18424_ Knocked back. 18426_ EM Dispersion Field destroyed. 18426_ Biometal Leg destroyed. 18427_ The unstable cave ceiling collapses. 18428_ Slug penetrates M Guard. 18428_ HV Slug penetrates M Guard. 18430_ The unstable cave ceiling collapses. 18431_ Slug penetrates M Guard. 18434_ The unstable cave ceiling collapses. 18434_ Knocked back. 18435_ The unstable cave ceiling collapses. 18435_ System corrupted: Imp. KE Penetrator jammed. 18435_ Slug penetrates M Guard. 18435_ K-01 Serf destroyed. 18435_ Slug penetrates M Guard. 18435_ HV Slug penetrates M Guard. 18437_ The unstable cave ceiling collapses. 18438_ Biometal Leg destroyed. 18438_ Quantum Reactor destroyed. Map ----- +----------------------------------------------------+ | ?????????????????????????????????????????????????? | | ?????????????????????????????????????????????????? | | ?????????????????????????????????????????????????? | | ?????????????????????????????????????????????????? | | ?????????????????????????????????????????????????? | | ?????????????????????????????????????????????????? | | ?????????????????????????????????????????????????? | | ?????????????????????????????????????????????????? | | ?????????????????????????????????????????????????? | | ?????????????????????????????????????????????????? | | ?????????????????????????????????????????????????? | | ?????????????????????????????????????????????????? | | ?????????????????????????????????????????????????? | | ?????????????????????????????????????????????????? | | ???????????????????????????????????????""????????? | | ??????????????????????????????????????""""???????? | | ??????????????????????????????????????""""???????? | | ???????????????????????????????????????""????????? | | ?????????????????###???###########?###?? ????????? | | ???????????? ????# ###!!!# # = # # ????????? | | ???????????# W ### W # %* ]%[ # ######+#### | | ????????? ! ! ^ | | ????????? ^ | | ????????? p!* ^ | | ????????? Y! = ^^ | | ?????????? @ =Y % %= | | ??????????## ### W W % # /########??? | | ???????????# ????# ]# #??? | | ?????????????????### #! #??? | | ???????????????????# # # """" #??? | | ???????????????????## ###?# """" ###? | | ????????????????????### # # ###???# """" =+ ? | | ??????????????????????#########?????# "" #### | | ????????????????????????????????????# == #??? | | ????????????????????????????????????# ![=! !#??? | | ???????????????????????????????########"########## | | ???????????????????????????????# !!=! # | | ???????????????????????????????# !!! # | | ???????????????????????????????# # | | ???????????????????????????????# # | | ???????????????????????????????# !* # | | ???????????????????????????????# [![ # | | ???????????????????????????????# ! == !! # | | ???????????????????????????????####+##!########### | | ?????????????????????????????????# %+ | | ?????????????????????????????????# # """ | | ?????????????????????????????????# + """" | | ?????????????????????????????????# # """" | | ?????????????????????????????????# # ""T | | ?????????????????????????????????# # | +----------------------------------------------------+ Best States ------------- Heat Dissipation 74 Coolant Potential 100 Energy Generation 43 Energy Capacity 2090 Matter Stores 507 Matter Capacity 550 Sight Range 16 Terrain Scan Range 16 Terrain Scan Density 10 Additional Mass Support 9 Armor Coverage 825 Resistance: KI 25 Resistance: TH 30 Resistance: EX 50 Resistance: EM 75 Utility Shielding 66 Weapon Shielding 66 Point Defense Rating 240 Evasion (%) 55 Target Analysis 8 Core Analysis 6 Recoil Reduction 5 Matter Filtering 50 Offensive Hacking 46 Defensive Hacking 12 Item Schematics ----------------- Hcp. Storage Unit | -10/Materials | Hacked Hacking Suite | -8/Materials | Hacked Machine Analyzer | -7/Factory | Hacked Imp. Hacking Suite | -6/Factory | Hacked Imp. Titanium Leg | -6/Factory | Scanalyzed Hrd. Medium Armor Plating | -6/Factory | Scanalyzed Imp. Utility Shielding | -6/Factory | Scanalyzed Imp. KE Penetrator | -4/Factory | Scanalyzed Centrium Leg | -2/Research | Hacked EM Dispersion Field | -2/Research | Hacked Robot Schematics ------------------ None Fabricated ------------ Machine Analyzer | x1 | -7/Factory Imp. Hacking Suite | x1 | -6/Factory Imp. KE Penetrator | x1 | -4/Armory Imp. KE Penetrator | x1 | -4/Armory Imp. KE Penetrator | x1 | -4/Armory Imp. KE Penetrator | x1 | -4/Armory Imp. KE Penetrator | x1 | -4/Armory Imp. KE Penetrator | x1 | -4/Armory Machine Analyzer | x1 | -4/Armory Imp. KE Penetrator | x1 | -4/Armory EM Dispersion Field | x1 | -2/Research Centrium Leg | x1 | -2/Research Centrium Leg | x1 | -2/Research Centrium Leg | x1 | -2/Research Centrium Leg | x1 | -2/Research Alien Tech Used ----------------- None Achievements -------------- None Challenges ------------ None Game ------ Seed HardlightImpactBay Manual? 0 Play Time 06:55:14 Cumulative 1062.5 hours Start 2021.05.23 @ 11:48:57 End 2021.05.25 @ 20:04:10 Sessions 35 Manual Loads 0 Difficulty Rogue Special Mode None Game No. 298 Rogue 298 Adventurer 0 Explorer 0 Win Type - Total 38 Types 25/5/5/3/0/0/0/0/0 Lore% 81 Gallery% 86 Achievement% 73 Wizard Run 0 Options --------- ASCII 0 Keyboard 1 Movement Numpad Keybinds 0 Fullscreen 1 Font 24/Smallcaps Map View 76x50 Tactical HUD 1 Map Filters NONE Filters NONE Steam 1 RUN: 12b6c3e8-fa99-4042-95f2-fdc472054bdc